fUSD/lending_fUSD_20240204
["ID","MTS","AMOUNT","RATE_DAILY","PERIOD"]
[313280803,1707073845579,-2000.0,0.00022926,2]
[313280805,1707073845588,-200.0,0.00022926,2]
[313280807,1707073845598,-157.55,0.00022939,2]
[313280808,1707073845608,-1509.0,0.00022986,2]
[313280810,1707073845617,-2735.0,0.00022986,2]
[313280812,1707073845626,-155.0,0.00022996,2]
[313280814,1707073845635,-342.68960484,0.00022998,2]
[313280815,1707073845645,-155.0,0.00022998,2]
[313280816,1707073845655,-703.5222346,0.00022998,2]
[313280817,1707073845664,-150.01,0.00022999,2]
[313280818,1707073845673,-3308.69286577,0.00022999,2]
[313280819,1707073845682,-349.45677853,0.00022999,2]
[313280820,1707073845691,-210.87296803,0.00022999,2]
[313280821,1707073845701,-348.91347753,0.00022999,2]
[313280822,1707073845714,-166.77756533,0.00022999,2]
[313280823,1707073845723,-300.0,0.00022999,2]
[313280824,1707073845732,-300.0,0.00022999,2]
[313280825,1707073845742,-300.0,0.00022999,2]
[313280826,1707073845751,-300.0,0.00022999,2]
[313280827,1707073845761,-431.12755074,0.00022999,2]
[313280828,1707073845770,-389.14765245,0.00022999,2]
[313280829,1707073845780,-1856466.59480425,0.00023,2]
[313280830,1707073845789,-1569458.58560494,0.00023,2]
[313280831,1707073845809,-38313.71270832,0.00023,2]
[313280832,1707073845823,-64086.09968707,0.00023,2]
[313280833,1707073845834,-5403.11313768,0.00023,2]
[313280834,1707073845845,-1153.5,0.00023,2]
[313280858,1707073846082,-752052.02815264,0.00023,2]
[313280860,1707073846104,-542.96175472,0.00023,2]
[313280861,1707073846115,-652.22971811,0.00023,2]
[313280872,1707073846261,-755.55,0.000229,2]
[313280873,1707073846271,-386.275,0.00023,2]
[313280874,1707073846422,-17763.28547517,0.00023,2]
[313280875,1707073846483,-549.39783028,0.00023,2]
[313280877,1707073856294,2936.57546586,0.00022079,2]
[313280878,1707073863694,203.0,0.00021813,2]
[313280879,1707073905389,1116.26763278,0.00022468,2]
[313280880,1707073905413,8000.43638213,0.00022468,2]
[313280881,1707073905437,162.18156875,0.00022468,2]
[313280882,1707073907174,415.0,0.00020545,2]
[313280883,1707073919889,155.0,0.00020425,2]
[313280884,1707073924144,206.0,0.00021813,2]
[313280885,1707073924812,3518.4405472,0.00021813,2]
[313280886,1707073927966,565.03,0.00022418,2]
[313280887,1707073929151,854.65285225,0.00021813,2]
[313280888,1707073941735,1420.52819895,0.00021595,2]
[313280889,1707073969018,168.41,0.00022269,2]
[313280890,1707073996041,150.0,0.00022,2]
[313280891,1707073996398,184.22,0.00022109,2]
[313280892,1707074024287,200.97321498,0.00022269,5]
[313280893,1707074024313,1080.97368892,0.00022269,5]
[313280894,1707074026237,926.4658,0.00022499,14]
[313280895,1707074028515,1218.86342781,0.00020425,5]
[313280896,1707074044092,204.0,0.00021813,2]
[313280897,1707074045341,167.79,0.00022059,2]
[313280898,1707074048429,1281.9469039,0.00022269,5]
[313280899,1707074054891,3120.3965615,0.00022019,2]
[313280900,1707074054918,20035.0134385,0.00022019,2]
[313280901,1707074056807,808.98550887,0.00021813,2]
[313280902,1707074059082,494.07788319,0.00021813,2]
[313280903,1707074061209,283.58907863,0.00021813,2]
[313280904,1707074063728,2197.7440987,0.00021595,2]
[313280905,1707074064283,714.19941335,0.00021813,5]
[313280906,1707074066102,1029.59993686,0.00021813,2]
[313280907,1707074068401,735.5792147,0.00021,2]
[313280908,1707074073506,404.74039498,0.00021159,2]
[313280909,1707074073698,203.0,0.00021813,2]
[313280910,1707074076909,155.14082571,0.00019632,2]
[313280911,1707074077079,268.32724543,0.00021813,2]
[313280912,1707074079117,2232.2179096,0.00021813,2]
[313280913,1707074083305,1131.20769499,0.00021813,2]
[313280914,1707074084035,362.00852423,0.00021813,2]
[313280915,1707074086834,260.9149056,0.00021813,2]
[313280916,1707074086912,285.05375891,0.00021813,2]
[313280917,1707074091024,162.10481077,0.00020425,2]
[313280918,1707074092923,250.0,0.00021974,2]
[313280919,1707074113044,183.11,0.00021954,2]
[313280920,1707074115983,1024.09,0.00021946,2]
[313280921,1707074122155,2000.0,0.00021899,2]
[313280922,1707074136364,250.0,0.00021899,2]
[313280923,1707074193769,203.0,0.00021874,2]
[313280924,1707074237123,151.98,0.00022064,2]
[313280925,1707074237332,151.98,0.00022294,2]
[313280926,1707074328337,499.77,0.00021829,2]
[313280927,1707074329746,449.64,0.00019911,2]
[313280928,1707074329942,449.64,0.00022175,2]
[313280929,1707074332403,6514.01,0.00021918,2]
[313280930,1707074337700,216.36056394,0.00022174,2]
[313280931,1707074376018,8204.0065,0.00022497,2]
[313280932,1707074409019,566.11,0.00021839,2]
[313280933,1707074417949,150.0,0.00021889,2]
[313280934,1707074420286,6046.85221683,0.00022467,2]
[313280935,1707074447840,247.5570677,0.0002251,2]
[313280936,1707074450103,2911.79656407,0.0002251,2]
[313280937,1707074455439,176.92,0.00022,2]
[313280938,1707074461686,273.34266273,0.0002251,2]
[313280939,1707074470621,197.65742886,0.0002251,2]
[313280940,1707074473759,180.1,0.00021924,2]
[313280941,1707074553968,204.0,0.00021904,2]
[313280942,1707074563065,976.8,0.00021898,2]
[313280943,1707074566576,250.0,0.00021898,2]
[313280944,1707074623904,2641.6683,0.00022497,2]
[313280945,1707074633723,158.37746302,0.00022496,2]
[313280946,1707074652040,152.02,0.00021961,2]
[313280947,1707074652291,152.02,0.0002219,2]
[313280948,1707074652502,152.02,0.00022419,2]
[313280949,1707074781094,454.53,0.00019783,2]
[313280950,1707074781292,454.53,0.00022047,2]
[313280951,1707074843028,570.38,0.0002169,2]
[313280952,1707074855267,355.74113653,0.00022509,2]
[313280953,1707074893712,2460.06,0.00022497,2]
[313280954,1707074896083,518.64502866,0.00022509,2]
[313280955,1707074913888,204.0,0.00021962,2]
[313280956,1707074946723,184.63,0.00021714,2]
[313280957,1707074961607,-247.5570677,0.00022524,2]
[313280963,1707075032279,-158.37746293,0.00022525,2]
[313280964,1707075032290,-167.0,0.00022531,2]
[313280965,1707075032299,-352.94,0.00022548,2]
[313280966,1707075032311,-158.37746293,0.00022554,2]
[313280967,1707075032321,-158.37746293,0.00022583,2]
[313280968,1707075032331,-306.22761141,0.0002259,2]
[313280969,1707075032343,-406.81238859,0.0002259,2]
[313280970,1707075032354,-249.31789031,0.00022595,2]
[313280971,1707075032363,-300.0,0.00022595,2]
[313280972,1707075032374,-150.0,0.00022595,2]
[313280973,1707075032385,-3226.2056,0.00022596,2]
[313280974,1707075032395,-15649.7963,0.00022596,2]
[313280975,1707075032405,-446.7859,0.00022597,2]
[313280976,1707075032414,-2717.7911,0.00022597,2]
[313280977,1707075032423,-64553.4143,0.00022597,2]
[313280978,1707075032432,-77922.23,0.00022597,2]
[313280979,1707075032442,-150.99,0.00022597,2]
[313280980,1707075032451,-210.9070723,0.00022597,2]
[313280981,1707075032460,-220.19602869,0.00022597,2]
[313280982,1707075032469,-766.05331604,0.00022597,2]
[313280983,1707075032479,-1578.72,0.00022597,2]
[313280984,1707075032488,-623.18,0.00022597,2]
[313280985,1707075032497,-529.53549414,0.00022597,2]
[313280987,1707075032506,-167.61944862,0.00022598,2]
[313280989,1707075032515,-158.37746293,0.00022611,2]
[313280990,1707075032524,-158.37746293,0.0002264,2]
[313280991,1707075032534,-152.02,0.00022648,2]
[313280992,1707075032543,-158.37746293,0.00022669,2]
[313280993,1707075032552,-215.35384188,0.00022672,2]
[313280994,1707075032561,-243.20763244,0.00022686,2]
[313280995,1707075032570,-286.73899009,0.00022694,2]
[313280996,1707075032579,-199.23214259,0.00022694,2]
[313280997,1707075032588,-376.90845451,0.00022694,2]
[313280998,1707075032598,-10046.08618658,0.00022694,2]
[313280999,1707075032607,-6388.87669322,0.00022694,2]
[313281000,1707075032616,-8689.83577094,0.00022694,2]
[313281001,1707075032625,-155.35719994,0.00022694,2]
[313281002,1707075032634,-695.69995506,0.00022694,2]
[313281003,1707075032644,-2991.07123694,0.00022694,2]
[313281004,1707075032653,-235.92440878,0.00022694,2]
[313281005,1707075032662,-307.92692644,0.00022694,2]
[313281006,1707075032671,-228.5814212,0.00022694,2]
[313281007,1707075032681,-183.76027275,0.00022694,2]
[313281008,1707075032690,-318.07157478,0.00022694,2]
[313281009,1707075032699,-518.12262788,0.00022694,2]
[313281010,1707075032708,-158.8409691,0.00022695,2]
[313281011,1707075032717,-314.31237372,0.00022695,2]
[313281012,1707075032726,-186.57838311,0.00022695,2]
[313281013,1707075032735,-368.55900548,0.00022695,2]
[313281014,1707075032744,-582.84742818,0.00022695,2]
[313281015,1707075032754,-155.60046334,0.00022695,2]
[313281016,1707075032763,-418.21791161,0.00022695,2]
[313281017,1707075032772,-172.09680919,0.00022695,2]
[313281018,1707075032781,-183.60060641,0.00022695,2]
[313281019,1707075032790,-155.0,0.00022695,2]
[313281020,1707075032799,-366.02277432,0.00022695,2]
[313281021,1707075032808,-155.0,0.00022695,2]
[313281022,1707075032817,-245.26780635,0.00022695,2]
[313281023,1707075032826,-162.65321079,0.00022695,2]
[313281024,1707075032836,-236.84590808,0.00022695,2]
[313281025,1707075032845,-939.25271979,0.00022695,2]
[313281026,1707075032856,-155.7166928,0.00022695,2]
[313281027,1707075032866,-155.0,0.00022695,2]
[313281028,1707075032876,-261.39902141,0.00022695,2]
[313281029,1707075032895,-302.89880783,0.00022695,2]
[313281030,1707075032909,-155.3355389,0.00022695,2]
[313281031,1707075032918,-155.44467428,0.00022695,2]
[313281032,1707075032928,-171.7777838,0.00022695,2]
[313281033,1707075032939,-155.30836834,0.00022695,2]
[313281034,1707075032949,-306.11469835,0.00022695,2]
[313281035,1707075032959,-155.36341877,0.00022695,2]
[313281036,1707075032971,-497.9111912,0.00022695,2]
[313281037,1707075032982,-209.80433124,0.00022695,2]
[313281038,1707075032993,-285.66659166,0.00022695,2]
[313281039,1707075033003,-218.2736471,0.00022695,2]
[313281040,1707075033013,-176.55976016,0.00022695,2]
[313281041,1707075033023,-699.81053348,0.00022695,2]
[313281042,1707075033032,-265.85689275,0.00022695,2]
[313281043,1707075033042,-155.60727124,0.00022695,2]
[313281044,1707075033051,-155.73079007,0.00022695,2]
[313281045,1707075033061,-199.52500903,0.00022695,2]
[313281046,1707075033070,-169.52712515,0.00022695,2]
[313281047,1707075033079,-342.68960484,0.00022696,2]
[313281048,1707075033088,-518004.64760629,0.00022696,2]
[313281049,1707075033103,-2029.876638,0.00022696,2]
[313281050,1707075033125,-4324.98764311,0.00022696,2]
[313281051,1707075033137,-2123.00412,0.00022696,2]
[313281062,1707075038297,-5797.71,0.00022696,2]
[313281063,1707075038355,-402.12299413,0.00022696,2]
[313281064,1707075038533,-3100.0,0.00022696,2]
[313281065,1707075038589,-1576.10650313,0.00022696,2]
[313281066,1707075038601,-451.57864314,0.00022696,2]
[313281073,1707075040877,-316.87153115,0.00022696,2]
[313281074,1707075040894,-3528.44501816,0.00022696,2]
[313281075,1707075040906,-19220.5143,0.00022696,2]
[313281076,1707075040932,-50016.90077604,0.00022696,2]
[313281077,1707075040989,-501.41626129,0.00022696,2]
[313281078,1707075041001,-740.0480233,0.00022696,2]
[313281079,1707075041011,-95.90615743,0.00022697,2]
[313281080,1707075041743,-2396.42052,0.00022697,2]
[313281106,1707075043301,-3943.86120039,0.00022697,2]
[313281125,1707075043412,-871.39701322,0.00022697,2]
[313281127,1707075043423,-151321.95273588,0.00022697,2]
[313281133,1707075043470,-1223.34715648,0.00022697,2]
[313281145,1707075045033,362.58864827,0.00022,2]
[313281158,1707075046345,-2392.3790065,0.00022697,2]
[313281159,1707075046454,-7047.1935101,0.00022697,2]
[313281160,1707075046464,-158.37746293,0.00022698,2]
[313281161,1707075046474,-158.37746293,0.00022727,2]
[313281162,1707075046483,-158.37746293,0.00022756,2]
[313281163,1707075046493,-158.37746293,0.00022785,2]
[313281164,1707075046503,-2585.64931582,0.000228,2]
[313281165,1707075046513,-158.37746293,0.00022813,2]
[313281166,1707075046524,-800.0,0.00022815,2]
[313281167,1707075046534,-200.0,0.00022816,2]
[313281168,1707075046544,-800.0,0.00022816,2]
[313281169,1707075046555,-800.0,0.00022816,2]
[313281170,1707075046564,-158.37746293,0.00022842,2]
[313281171,1707075046574,-158.37746293,0.00022871,2]
[313281172,1707075046584,-152.02,0.00022877,2]
[313281173,1707075046594,-765.0594,0.00022898,2]
[313281174,1707075046604,-220.19602869,0.00022899,2]
[313281175,1707075046613,-524.0,0.000229,2]
[313281177,1707075046623,-158.37746293,0.000229,2]
[313281178,1707075046632,-746.9448,0.000229,2]
[313281179,1707075046642,-153.24017468,0.000229,2]
[313281180,1707075046651,-210.9070723,0.000229,2]
[313281181,1707075046660,-198.77131317,0.000229,2]
[313281182,1707075046670,-213.36543942,0.000229,2]
[313281183,1707075046680,-194.58103893,0.000229,2]
[313281184,1707075046690,-318.10124226,0.000229,2]
[313281185,1707075046699,-387.6816417,0.00022997,2]
[313281186,1707075046708,-500.0,0.00022997,2]
[313281187,1707075046718,-262.81225835,0.00022997,2]
[313281188,1707075046728,-500.0,0.00022997,2]
[313281189,1707075046737,-500.0,0.00022997,2]
[313281190,1707075046747,-500.0,0.00022997,2]
[313281191,1707075046756,-500.0,0.00022997,2]
[313281192,1707075046765,-500.0,0.00022997,2]
[313281193,1707075046774,-155.0,0.00022998,2]
[313281194,1707075046783,-95280.60274839,0.00022998,2]
[313281195,1707075046800,-325.4120935,0.00022998,2]
[313281196,1707075090866,212452.9561,0.00022497,2]
[313281197,1707075121713,741.4598,0.00022497,2]
[313281198,1707075164653,4671.30370322,0.00020696,5]
[313281199,1707075202410,272.08,0.00022501,10]
[313281200,1707075273761,204.0,0.00022019,2]
[313281201,1707075328392,452.88,0.00021883,2]
[313281202,1707075391540,453.94,0.00019957,2]
[313281203,1707075391719,453.94,0.00022221,2]
[313281204,1707075434827,180.1,0.00021872,2]
[313281205,1707075449496,-364.91711088,0.00022593,2]
[313281206,1707075449714,-150.0,0.00022593,2]
[313281207,1707075449735,-725.14,0.00022593,2]
[313281208,1707075449755,-730.51,0.00022593,2]
[313281209,1707075449774,-733.58,0.00022593,2]
[313281210,1707075449794,-712.67,0.00022593,2]
[313281211,1707075449813,-722.59,0.00022593,2]
[313281212,1707075449832,-721.12,0.00022593,2]
[313281213,1707075449852,-716.17,0.00022594,2]
[313281214,1707075449872,-1000.0,0.00022594,2]
[313281215,1707075449894,-711.13,0.00022594,2]
[313281216,1707075449915,-723.7,0.00022594,2]
[313281217,1707075449935,-188.47288912,0.00022594,2]
[313281218,1707075501320,152.05,0.00022049,2]
[313281219,1707075625841,1002.52,0.00021885,2]
[313281220,1707075633842,204.0,0.00022104,2]
[313281221,1707075672401,217.66,0.00021884,10]
[313281222,1707075672601,217.66,0.0002242,10]
[313281223,1707075800879,550.99,0.00021885,2]
[313281224,1707075916020,184.63,0.00021866,2]
[313281225,1707075928347,152.07,0.0002203,2]
[313281226,1707075955209,452.65,0.00019953,2]
[313281227,1707075955550,452.65,0.00022217,2]
[313281228,1707075993711,204.0,0.00022219,2]
[313281229,1707076069799,150.0,0.00022496,2]
[313281230,1707076097458,906.84,0.00021874,2]
[313281231,1707076162976,163.25,0.00021881,10]
[313281232,1707076212224,486.56,0.00021883,2]
[313281240,1707076232570,-150.0,0.00022526,2]
[313281242,1707076232580,-538.49711088,0.00022594,2]
[313281244,1707076232589,-163.25,0.00022596,10]
[313281246,1707076232598,-170.40904936,0.00022688,2]
[313281248,1707076232607,-200.0,0.00022716,2]
[313281249,1707076232616,-150.0,0.00022728,2]
[313281251,1707076232625,-150.0,0.0002273,2]
[313281253,1707076232634,-150.0,0.00022742,2]
[313281255,1707076232643,-150.0,0.00022752,2]
[313281257,1707076232653,-416.38,0.00022752,2]
[313281259,1707076232662,-150.0,0.00022752,2]
[313281261,1707076232671,-150.0,0.00022755,2]
[313281263,1707076232680,-499.99,0.00022755,2]
[313281265,1707076232689,-150.0,0.00022759,2]
[313281267,1707076232699,-1500.0,0.0002276,2]
[313281269,1707076232707,-150.0,0.00022764,2]
[313281271,1707076232717,-150.0,0.00022772,2]
[313281273,1707076232726,-150.0,0.00022777,2]
[313281275,1707076232735,-150.0,0.00022781,2]
[313281277,1707076232745,-150.0,0.00022787,2]
[313281279,1707076232754,-150.0,0.00022787,2]
[313281281,1707076232763,-150.0,0.00022789,2]
[313281283,1707076232772,-150.0,0.00022796,2]
[313281285,1707076232781,-150.0,0.00022806,2]
[313281287,1707076232791,-150.0,0.0002281,2]
[313281289,1707076232800,-1500.0,0.00022813,2]
[313281291,1707076232809,-200.0,0.00022815,2]
[313281293,1707076232818,-800.0,0.00022815,2]
[313281295,1707076232827,-150.0,0.00022817,2]
[313281296,1707076232836,-150.0,0.00022818,2]
[313281298,1707076232845,-336.24697309,0.0002282,2]
[313281299,1707076232854,-150.0,0.00022822,2]
[313281300,1707076232863,-1500.0,0.00022829,2]
[313281301,1707076232872,-150.0,0.0002283,2]
[313281302,1707076232882,-150.0,0.00022837,2]
[313281303,1707076232892,-150.0,0.00022841,2]
[313281304,1707076232901,-150.0,0.00022845,2]
[313281306,1707076232910,-150.0,0.00022852,2]
[313281308,1707076232920,-150.0,0.00022862,2]
[313281310,1707076232929,-1500.0,0.00022863,2]
[313281312,1707076232938,-150.0,0.00022864,2]
[313281314,1707076232947,-150.0,0.00022873,2]
[313281315,1707076232956,-150.0,0.00022874,2]
[313281316,1707076232965,-150.0,0.00022874,2]
[313281317,1707076232974,-163.37189015,0.00022882,2]
[313281318,1707076232983,-150.0,0.00022886,2]
[313281319,1707076232992,-150.0,0.00022887,2]
[313281320,1707076233000,-150.0,0.00022897,2]
[313281321,1707076233009,-1128.83416788,0.00022898,2]
[313281322,1707076233019,-15781.2128,0.00022898,2]
[313281323,1707076233028,-1576.5948,0.00022898,2]
[313281324,1707076233037,-150.0,0.00022899,2]
[313281325,1707076233047,-186.7671004,0.000229,2]
[313281326,1707076233056,-177.17930462,0.000229,2]
[313281327,1707076233066,-198.77131317,0.000229,2]
[313281328,1707076233074,-529.53549413,0.000229,2]
[313281329,1707076233083,-153.33503367,0.000229,2]
[313281330,1707076233093,-1500.0,0.00022903,2]
[313281331,1707076233102,-150.0,0.00022912,2]
[313281332,1707076233111,-150.0,0.00022916,2]
[313281333,1707076233122,-150.0,0.00022917,2]
[313281334,1707076233131,-150.0,0.00022926,2]
[313281335,1707076233140,-150.0,0.00022929,2]
[313281336,1707076233149,-150.0,0.00022935,2]
[313281337,1707076233160,-150.0,0.00022937,2]
[313281338,1707076233171,-150.0,0.0002294,2]
[313281339,1707076233180,-150.0,0.00022944,2]
[313281340,1707076233189,-150.0,0.00022945,2]
[313281341,1707076233198,-150.0,0.00022949,2]
[313281342,1707076233206,-150.0,0.00022949,2]
[313281343,1707076233215,-150.0,0.00022957,2]
[313281344,1707076233224,-150.0,0.00022957,2]
[313281345,1707076233233,-150.0,0.00022962,2]
[313281346,1707076233243,-150.0,0.00022968,2]
[313281347,1707076233252,-150.0,0.00022969,2]
[313281348,1707076233262,-150.0,0.00022972,2]
[313281349,1707076233272,-150.0,0.00022978,2]
[313281350,1707076233281,-194.4155184,0.0002299,2]
[313281351,1707076233290,-150.0,0.00022993,2]
[313281352,1707076233299,-1342.47698803,0.00022996,3]
[313281353,1707076233309,-342.68960484,0.00022996,2]
[313281354,1707076233318,-155.0,0.00022996,2]
[313281355,1707076233327,-155.44252608,0.00022996,2]
[313281356,1707076233338,-155.0,0.00022996,2]
[313281357,1707076233350,-155.0,0.00022996,2]
[313281358,1707076233360,-341.0495753,0.00022996,2]
[313281359,1707076233369,-742.02419043,0.00022996,2]
[313281360,1707076233378,-232.92375042,0.00022996,2]
[313281361,1707076233387,-168.61937043,0.00022996,2]
[313281362,1707076233398,-174.41982976,0.00022996,2]
[313281363,1707076233408,-150.0,0.00022996,2]
[313281364,1707076233417,-155.00009738,0.00022997,2]
[313281365,1707076233428,-15432.41684885,0.00022997,2]
[313281366,1707076233438,-211759.67234081,0.00022998,2]
[313281367,1707076233448,-268.96634037,0.00022998,2]
[313281368,1707076233458,-159.09532459,0.00022998,2]
[313281369,1707076233468,-155.0,0.00022998,2]
[313281370,1707076233478,-157.11465594,0.00022998,2]
[313281371,1707076233488,-1033.92055253,0.00022998,2]
[313281372,1707076233497,-1999.9999999,0.00022998,2]
[313281373,1707076233506,-200.0,0.00022998,2]
[313281374,1707076233517,-155.0,0.00022999,2]
[313281375,1707076233526,-155.0,0.00022999,2]
[313281376,1707076233535,-214.47464455,0.00022999,2]
[313281377,1707076233544,-298.81896093,0.00022999,2]
[313281378,1707076233554,-1865.60889372,0.00022999,2]
[313281379,1707076233563,-283.83163888,0.00022999,2]
[313281380,1707076233573,-150.01,0.00022999,2]
[313281381,1707076233583,-3308.69286577,0.00022999,2]
[313281382,1707076233593,-524.53469537,0.00022999,2]
[313281383,1707076233605,-533.0,0.00023,2]
[313281384,1707076233614,-101985.0271304,0.00023,2]
[313281385,1707076233623,-1057937.10621584,0.00023,2]
[313281386,1707076233640,-272.08,0.00023,2]
[313281387,1707076233669,-2155.98250582,0.00023,2]
[313281388,1707076233684,-2134.15596,0.00023,2]
[313281389,1707076233696,-189966.67465141,0.00023,2]
[313281390,1707076233705,-1000.0,0.00023,2]
[313281391,1707076233714,-150.0,0.00023,2]
[313281392,1707076233724,-884.5497217,0.00023037,2]
[313281393,1707076233733,-333.63716886,0.00023066,2]
[313281394,1707076233742,-21473.05449893,0.0002313,2]
[313281395,1707076233751,-167.0,0.00023166,2]
[313281396,1707076233760,-152.07,0.00023178,2]
[313281397,1707076233769,-200.0,0.00023228,2]
[313281398,1707076233778,-300.0,0.00023242,2]
[313281399,1707076233787,-163.25,0.00023311,10]
[313281400,1707076233797,-204.0,0.00023364,3]
[313281401,1707076233806,-2585.64931574,0.00023436,2]
[313281402,1707076233816,-190.91028955,0.0002346,2]
[313281403,1707076233825,-906.84,0.00023518,2]
[313281404,1707076233835,-1128.83416785,0.00023884,2]
[313281405,1707076233844,-153.33503355,0.00023889,2]
[313281406,1707076233853,-682.7088039,0.00023899,2]
[313281407,1707076233862,-167.0,0.00023907,2]
[313281408,1707076233871,-118179.49473668,0.00023999,2]
[313281409,1707076233880,-501.54598394,0.00023999,2]
[313281410,1707076233889,-201.83380007,0.00024,2]
[313281411,1707076233898,-163.25,0.00024026,10]
[313281412,1707076233908,-1140.73,0.00024027,2]
[313281413,1707076233917,-184.63,0.00024053,2]
[313281414,1707076233926,-2585.64931574,0.00024073,2]
[313281415,1707076233935,-170.40904936,0.0002409,2]
[313281416,1707076233944,-564.2985862,0.000241,2]
[313281417,1707076233954,-166.75911386,0.000243,2]
[313281418,1707076233963,-697.6,0.00024384,2]
[313281419,1707076233971,-3487.97,0.00024384,2]
[313281420,1707076233980,-326.01178679,0.0002442,2]
[313281421,1707076233989,-452.65,0.0002448,2]
[313281422,1707076233998,-204.0,0.00024509,5]
[313281423,1707076234007,-300.0,0.00024612,2]
[313281424,1707076234017,-486.56,0.00024618,2]
[313281425,1707076234026,-550.99,0.00024621,2]
[313281426,1707076234035,-167.0,0.00024647,2]
[313281427,1707076234044,-3126.16,0.00024658,2]
[313281428,1707076234054,-250.0,0.00024658,2]
[313281429,1707076234063,-5000.0,0.00024687,2]
[313281430,1707076234072,-2585.64931574,0.00024709,2]
[313281431,1707076234082,-3126.16,0.00024787,2]
[313281432,1707076234091,-1128.83416785,0.0002487,2]
[313281433,1707076234101,-1140.73,0.00024877,2]
[313281434,1707076234110,-153.33503355,0.00024877,2]
[313281435,1707076234122,-150.0,0.0002488,3]
[313281436,1707076234131,-3126.16,0.00024917,2]
[313281437,1707076234140,-202.68780413,0.00025,2]
[313281438,1707076234150,-167.92991373,0.00025,2]
[313281439,1707076234159,-1588.97256459,0.00025,2]
[313281440,1707076234168,-304.48967897,0.00025,2]
[313281441,1707076234177,-159.24196843,0.00025,2]
[313281442,1707076234186,-936.6209496,0.00025,2]
[313281443,1707076234196,-1905.81852245,0.00025,2]
[313281444,1707076234204,-200.83671057,0.00025,2]
[313281445,1707076234213,-426.69524324,0.00025,2]
[313281446,1707076234223,-1254.00428759,0.00025,2]
[313281447,1707076234232,-3126.16,0.00025047,2]
[313281448,1707076234241,-154.53150843,0.0002509,2]
[313281449,1707076234250,-1329.05098452,0.000251,2]
[313281450,1707076234260,-906.84,0.00025162,2]
[313281451,1707076234272,-3126.16,0.00025177,2]
[313281452,1707076234281,-3126.16,0.00025306,2]
[313281453,1707076234290,-2585.64931574,0.00025345,2]
[313281454,1707076234299,-167.0,0.00025387,2]
[313281455,1707076234308,-3126.16,0.00025436,2]
[313281456,1707076234318,-274.94661593,0.0002549,2]
[313281457,1707076234326,-170.40904936,0.00025492,2]
[313281458,1707076234335,-3126.16,0.00025566,2]
[313281459,1707076234345,-164.11617636,0.000256,2]
[313281460,1707076234354,-204.0,0.00025654,7]
[313281461,1707076234363,-3126.16,0.00025696,2]
[313281462,1707076234372,-6657.51301197,0.00025696,5]
[313281463,1707076234382,-1140.73,0.00025727,2]
[313281464,1707076234391,-3126.16,0.00025826,2]
[313281465,1707076234401,-1128.83416785,0.00025856,2]
[313281466,1707076234409,-153.33503355,0.00025866,2]
[313281467,1707076234419,-3126.16,0.00025955,2]
[313281468,1707076234427,-2585.64931574,0.00025981,2]
[313281469,1707076234436,-201.74842816,0.00026,2]
[313281470,1707076234446,-150.0,0.00026,2]
[313281471,1707076234455,-150.0,0.00026079,2]
[313281472,1707076234464,-3126.16,0.00026085,2]
[313281473,1707076234474,-167.0,0.00026127,2]
[313281474,1707076234483,-3126.16,0.00026215,2]
[313281475,1707076234492,-184.63,0.0002624,2]
[313281476,1707076234501,-3126.16,0.00026345,2]
[313281477,1707076234510,-18848.93000566,0.000264,2]
[313281478,1707076234519,-333.63716884,0.00026433,2]